bitfinex/quotes_ETHUSD_20251031
["timestamp","ask_amount","ask_price","bid_price","bid_amount"]
[1761889902645,0.001,3857.0,3856.9,1.27158859]
[1761889903049,0.001,3857.0,3856.9,1.75008859]
[1761889903454,0.001,3857.0,3856.9,3.56501767]
[1761889903679,0.001,3857.0,3856.9,1.75008859]
[1761889904164,0.001,3857.0,3856.9,3.56501767]
[1761889904575,0.001,3857.0,3856.9,1.75008859]
[1761889906884,0.001,3857.0,3856.9,3.56501767]
[1761889907289,0.001,3857.0,3856.7,0.1555289]
[1761889907494,0.001,3857.0,3856.9,0.77928049]
[1761889908400,0.9351,3857.0,3856.6,0.002]
[1761889908560,0.4677,3856.7,3856.6,0.002]
[1761889908761,0.80338218,3856.9,3856.6,0.78137766]
[1761889909065,0.1296,3856.9,3856.6,0.78137766]
[1761889909393,0.48578218,3856.8,3856.6,0.78137766]
[1761889909568,0.1296,3856.9,3856.6,0.78137766]
[1761889909769,0.01938218,3856.8,3856.6,0.78137766]
[1761889910154,0.9981,3856.7,3856.6,0.002]
[1761889911493,0.01938218,3856.8,3856.6,0.002]
[1761889912164,0.51798218,3856.8,3856.6,0.002]
[1761889912561,2.3145232,3856.7,3856.6,0.002]
[1761889912762,2.77936821,3856.7,3856.6,0.002]
[1761889912986,1.46294501,3856.7,3856.6,0.002]
[1761889913190,0.9981,3856.7,3856.6,0.002]
[1761889913390,2.8131232,3856.7,3856.6,0.002]
[1761889913994,2.83250538,3856.7,3856.6,0.002]
[1761889917365,10.53073938,3856.7,3856.6,0.002]
[1761889917703,8.7564722,3856.7,3856.6,0.002]
[1761889917909,9.8543799,3856.7,3856.6,0.002]
[1761889918115,6.7442429,3856.7,3856.6,0.002]
[1761889918498,3.9110309,3856.7,3856.6,0.002]
[1761889918684,2.83250538,3856.7,3856.6,0.002]
[1761889919414,6.03407238,3856.7,3856.6,0.002]
[1761889919609,6.0146902,3856.7,3856.6,0.002]
[1761889920619,24.96551931,3856.7,3856.6,0.002]
[1761889920930,13.0380642,3856.7,3856.6,0.002]
[1761889921105,15.11989053,3856.7,3856.6,0.002]
[1761889921484,17.94383053,3856.7,3856.6,0.002]
[1761889921887,15.96462153,3856.7,3856.6,0.002]
[1761889922188,14.65914953,3856.7,3856.6,0.002]
[1761889922519,27.66851253,3856.7,3856.6,0.002]
[1761889922721,28.07401653,3856.7,3856.6,0.002]
[1761889923496,28.73115653,3856.7,3856.6,0.002]
[1761889923821,22.72334953,3856.7,3856.6,0.002]
[1761889924524,25.56979253,3856.7,3856.6,0.002]
[1761889925032,25.87401064,3856.7,3856.6,0.002]
[1761889925183,25.35338254,3856.2,3856.1,0.007]
[1761889925511,38.17390689,3856.2,3856.1,0.007]
[1761889925710,20.48659554,3856.2,3856.1,0.007]
[1761889925908,18.92120354,3856.2,3856.1,0.007]
[1761889926099,16.89072254,3856.2,3856.1,0.007]
[1761889926296,18.97254887,3856.2,3856.1,0.007]
[1761889926530,22.21194187,3856.2,3856.1,0.007]
[1761889926716,21.95213487,3856.2,3856.1,0.007]
[1761889927127,22.05609861,3856.2,3856.1,0.007]
[1761889927630,27.57930661,3856.2,3856.1,0.007]
[1761889927928,26.45043877,3856.2,3856.1,0.007]
[1761889928618,25.64700077,3856.2,3856.1,0.007]
[1761889929421,30.50034099,3856.2,3856.1,0.007]
[1761889929722,25.40877199,3856.2,3856.1,0.007]
[1761889930034,21.42059899,3856.2,3856.1,0.007]
[1761889930699,28.70491199,3856.2,3856.1,0.007]
[1761889931202,28.60094825,3856.2,3856.1,0.007]
[1761889931826,32.88989536,3856.2,3856.1,0.007]
[1761889932625,36.99543436,3856.2,3856.1,0.007]
[1761889933590,42.26468036,3856.2,3856.1,0.007]
[1761889934190,37.09541436,3856.2,3856.1,0.007]
[1761889934615,42.26468036,3856.2,3856.1,0.007]
[1761889934894,21.49456125,3856.2,3856.1,0.007]
[1761889935928,18.50179425,3856.2,3856.1,0.007]
[1761889936725,23.90574625,3856.2,3856.1,0.007]
[1761889936927,21.05072825,3856.2,3856.1,0.007]
[1761889937104,19.29830625,3856.2,3856.1,0.007]
[1761889937712,23.68006625,3856.2,3856.1,0.007]
[1761889938928,28.98668425,3856.2,3856.1,0.007]
[1761889939095,29.29090236,3856.2,3856.1,0.007]
[1761889939492,29.60298838,3856.2,3856.1,1e-08]
[1761889939701,28.89201711,3856.2,3856.1,1e-08]
[1761889939906,29.19623522,3856.2,3856.1,1e-08]
[1761889940325,31.92923522,3856.2,3856.1,1e-08]
[1761889940516,32.12203522,3856.2,3856.1,1e-08]
[1761889942632,2.2212334,3855.2,3855.1,1e-08]
[1761889942847,33.71740362,3855.2,3855.1,1e-08]
[1761889943158,30.97541462,3855.2,3855.1,1e-08]
[1761889950533,18.3868204,3855.2,3855.1,1e-08]
[1761889950837,23.24016062,3855.2,3855.1,1e-08]
[1761889951148,25.32198695,3855.2,3855.1,1e-08]
[1761889952725,24.83888695,3855.2,3855.1,1e-08]
[1761889953059,25.32198695,3855.2,3855.1,1e-08]
[1761889953357,21.63078395,3855.2,3855.1,1e-08]
[1761889953748,20.20878395,3855.2,3855.1,1e-08]
[1761889954163,17.39278395,3855.2,3855.1,1e-08]
[1761889954754,17.87588395,3855.2,3855.1,1e-08]
[1761889955770,16.94078395,3855.2,3855.1,1e-08]
[1761889956494,17.87588395,3855.2,3855.1,1e-08]
[1761889957397,15.42816695,3855.2,3855.1,1e-08]
[1761889957608,1.8157294,3855.2,3855.1,1e-08]
[1761889957770,1.83511158,3855.2,3855.1,1e-08]
[1761889959761,2.77021158,3855.2,3855.1,1e-08]
[1761889959988,4.16989158,3855.2,3855.1,1e-08]
[1761889960186,3.68679158,3855.2,3855.1,1e-08]
[1761889960889,4.80110275,3855.2,3855.1,1e-08]
[1761889961473,4.34910275,3855.2,3855.1,1e-08]
[1761889962059,4.34910275,3855.2,3855.1,0.00200001]
[1761889962799,26.49637275,3855.2,3855.1,0.00200001]
[1761889963001,19.90105457,3855.2,3855.1,0.00200001]
[1761889963201,19.41795457,3855.2,3855.1,0.00200001]
[1761889963402,19.90105457,3855.2,3855.1,0.00200001]
[1761889963771,19.55265657,3855.2,3855.1,0.00200001]
[1761889963970,20.57480257,3855.2,3855.1,0.00200001]
[1761889964995,20.49017957,3855.2,3855.1,0.00200001]
[1761889965695,20.79439768,3855.2,3855.1,0.00200001]
[1761889966094,29.09115568,3855.2,3855.1,0.00200001]
[1761889966479,24.43396268,3855.2,3855.1,0.00200001]
[1761889966807,21.89320768,3855.2,3855.1,0.00200001]
[1761889966985,19.18382368,3855.2,3855.1,0.00200001]
[1761889967301,6.63382057,3855.2,3855.1,0.00200001]
[1761889967502,3.2154094,3855.2,3855.1,0.00200001]
[1761889967702,3.23479158,3855.2,3855.1,0.00200001]
[1761889968404,1.83511158,3855.2,3855.1,0.00200001]
[1761889973214,23.57188469,3855.2,3855.1,0.00200001]
[1761889973411,16.85141151,3855.2,3855.1,0.00200001]
[1761889973611,19.37462946,3855.2,3855.1,0.00200001]
[1761889974110,23.54663846,3855.2,3855.1,0.00200001]
[1761889974488,23.28675446,3855.2,3855.1,0.00200001]
[1761889975090,24.79134346,3855.2,3855.1,0.00200001]
[1761889976114,28.37341746,3855.2,3855.1,0.00200001]
[1761889976490,28.68550348,3855.2,3855.1,0.00200001]
[1761889977212,33.80735646,3855.2,3855.1,0.00200001]
[1761889978185,35.61790446,3855.2,3855.1,0.00200001]
[1761889979213,36.00316946,3855.2,3855.1,0.00200001]
[1761889980213,32.81658846,3855.2,3855.1,0.00200001]
[1761889980420,32.51237035,3855.2,3855.1,0.00200001]
[1761889981424,34.75095948,3855.2,3855.1,0.00200001]
[1761889982321,25.81227135,3855.2,3855.1,0.00200001]
[1761889982524,17.19633835,3855.2,3855.1,0.00200001]
[1761889982893,17.60319879,3855.2,3855.1,0.00200001]
[1761889983293,35.51452879,3855.2,3855.1,0.00200001]
[1761889984123,34.01705179,3855.2,3855.1,0.00200001]
[1761889984321,35.52993979,3855.2,3855.1,0.00200001]
[1761889984818,35.31236279,3855.2,3855.1,0.00200001]
[1761889985322,35.57606479,3855.2,3855.1,0.00200001]
[1761889985720,26.92336279,3855.2,3855.1,0.00200001]
[1761889986299,27.20907979,3855.2,3855.1,0.00200001]
[1761889986596,29.84696401,3855.2,3855.1,0.00200001]
[1761889986800,13.89618201,3855.2,3855.1,0.00200001]
[1761889987458,16.62054201,3855.2,3855.1,0.00200001]
[1761889988429,25.67587701,3855.2,3855.1,0.00200001]
[1761889988622,24.74694901,3855.2,3855.1,0.00200001]
[1761889989023,25.21574901,3855.2,3855.1,0.00200001]
[1761889989402,27.81495401,3855.2,3855.1,0.00200001]
[1761889990333,35.00899801,3855.2,3855.1,0.00200001]
[1761889990634,34.97098403,3855.2,3855.1,0.00200001]
[1761889990824,35.27520214,3855.2,3855.1,0.00200001]
[1761889991419,42.18662922,3855.2,3855.1,0.00200001]
[1761889993253,41.77976878,3855.2,3855.1,0.00200001]
[1761889994513,43.17944878,3855.2,3855.1,0.00200001]
[1761889995723,33.53971678,3855.2,3855.1,0.00200001]
[1761889995918,33.22763076,3855.2,3855.1,0.00200001]
[1761889996118,27.73940865,3855.2,3855.1,0.00200001]
[1761889996437,26.72276704,3855.2,3855.1,0.00200001]
[1761889996613,27.04767904,3855.2,3855.1,0.00200001]
[1761889997644,37.68848004,3855.2,3855.1,0.00200001]
[1761889998115,37.36798604,3855.2,3855.1,0.00200001]
[1761889998519,37.63503704,3855.2,3855.1,0.00200001]
[1761889998818,36.16795704,3855.2,3855.1,0.00200001]
[1761889999045,32.30817604,3855.2,3855.1,0.00200001]
[1761889999242,24.16436804,3855.2,3855.1,0.00200001]
[1761889999648,32.20148104,3855.2,3855.1,0.00200001]
[1761889999840,30.64160004,3855.2,3855.1,0.00200001]
[1761890000550,12.97000804,3855.2,3855.1,0.00200001]
[1761890000730,32.72781609,3855.2,3855.1,0.00200001]
[1761890000932,32.35333509,3855.2,3855.1,0.00200001]
[1761890001143,31.34572609,3855.2,3855.1,0.00200001]
[1761890001520,10.44679009,3855.2,3855.1,0.00200001]
[1761890001840,40.44679009,3855.2,3855.1,0.00200001]
[1761890004453,40.7510082,3855.2,3855.1,0.00200001]
[1761890004635,10.7510082,3855.2,3855.1,0.00200001]
[1761890004839,40.7510082,3855.2,3855.1,0.00200001]
[1761890005043,1.8162005,3854.2,3854.1,0.01]
[1761890005439,1.83558268,3854.2,3854.1,0.01]
[1761890008656,4.10996668,3854.2,3854.1,0.01]
[1761890008828,5.3201414,3854.2,3854.1,0.01]
[1761890009027,5.30075922,3854.2,3854.1,0.01]
[1761890010357,6.95207785,3853.2,3851.1,0.01]
[1761890010655,6.95207785,3853.2,3851.2,0.78032438]
[1761890010656,13.81627115,3853.2,3851.2,0.78032438]
[1761890010862,13.81627115,3853.2,3851.5,1.81742657]
[1761890011057,13.81627115,3853.2,3851.6,1.84337263]
[1761890011258,22.15747215,3853.2,3851.6,0.02596323]
[1761890011432,24.27786944,3853.2,3851.6,0.02596323]
[1761890011629,24.27786944,3853.2,3851.3,0.02596525]
[1761890011825,24.27786944,3853.2,3851.3,1.94756424]
[1761890012057,24.27786944,3853.2,3851.4,1.81750999]
[1761890012259,10.73756644,3853.2,3851.5,1.84343324]
[1761890012465,31.40289344,3853.2,3851.5,0.02596391]
[1761890012638,28.20429944,3853.2,3851.7,1.81736292]
[1761890012842,28.20429944,3853.2,3851.8,0.02596188]
[1761890013367,35.03113853,3853.2,3851.1,0.01]
[1761890013565,35.03113853,3853.2,3851.2,0.10405001]
[1761890013863,35.4382296,3853.2,3851.1,0.01]
[1761890014051,35.4382296,3853.2,3851.1,1.93171003]
[1761890014250,42.30489953,3853.2,3851.2,1.81760869]
[1761890014561,42.30489953,3853.2,3851.3,1.81756566]
[1761890014768,40.01212653,3853.2,3851.3,1.81756566]
[1761890015164,1.81714345,3852.2,3851.1,0.01]
[1761890015352,1.81705706,3852.4,3851.4,1.81751566]
[1761890015554,0.01938218,3852.3,3851.5,0.02596391]
[1761890016569,1.81710116,3852.3,3851.4,1.81751897]
[1761890016764,0.01938218,3852.2,3851.5,1.84342439]
[1761890016935,0.01938218,3852.6,3851.5,1.84342439]
[1761890017434,1.81709372,3852.4,3852.1,0.012]
[1761890017640,1.83648042,3852.3,3852.1,0.012]
[1761890017953,0.01938218,3852.3,3852.1,0.012]
[1761890018154,1.81695633,3852.6,3852.1,0.012]
[1761890018356,1.83633851,3852.6,3852.1,0.012]
[1761890018754,0.1296,3852.2,3852.1,0.012]
[1761890019156,0.01938218,3852.7,3852.1,0.012]
[1761890019467,1.9466107,3852.5,3852.1,0.012]
[1761890020272,0.1296,3852.5,3852.1,0.012]
[1761890020565,1.96598791,3852.5,3852.1,0.012]
[1761890021064,1.81707558,3852.4,3852.1,0.012]
[1761890021645,1.96598906,3852.5,3852.1,0.012]
[1761890022265,0.14898218,3852.5,3852.1,0.012]
[1761890022472,0.1296,3852.5,3852.1,0.012]
[1761890022636,0.1296,3852.5,3852.2,0.02595919]
[1761890023335,0.1296,3852.5,3852.1,0.012]
[1761890025071,1.94660246,3852.5,3852.1,0.012]
[1761890026269,1.81705109,3852.4,3852.1,0.012]
[1761890028474,1.94662382,3852.5,3852.1,0.012]
[1761890028771,0.1296,3852.5,3852.1,0.012]
[1761890029748,0.1296,3852.5,3852.2,0.02595919]
[1761890029944,0.1296,3852.5,3852.1,0.012]
[1761890030695,0.1296,3852.5,3852.2,0.02595919]
[1761890032096,0.1296,3852.5,3852.1,0.012]
[1761890032793,1.81674058,3853.1,3852.2,0.02595919]
[1761890032993,1.94650753,3852.8,3852.2,0.02595919]
[1761890033778,1.81690767,3852.7,3852.2,0.02595919]
[1761890034397,1.81690767,3852.7,3852.1,0.1416]
[1761890034597,1.81695478,3852.6,3852.1,0.1416]
[1761890034799,1.81691472,3852.7,3852.1,0.1416]
[1761890035006,0.14898218,3852.8,3852.1,0.1416]
[1761890035166,0.1296,3852.8,3852.1,0.33748787]
[1761890035365,1.81695181,3852.7,3852.1,0.33748787]
[1761890037294,1.81701724,3852.5,3852.1,0.33748787]
[1761890037473,1.81701724,3852.5,3852.1,0.1416]
[1761890039079,1.81690813,3852.7,3852.1,0.1416]
[1761890039579,1.81697486,3852.6,3852.1,0.1416]
[1761890039797,1.81690994,3852.7,3852.1,0.1416]
[1761890040305,1.81695684,3852.6,3852.1,0.1416]
[1761890041110,0.14898218,3852.8,3852.1,0.1416]
[1761890041311,1.8169574,3852.6,3852.1,0.1416]
[1761890041507,0.14898218,3852.8,3852.1,0.1416]
[1761890041508,1.96585552,3852.8,3852.1,0.1416]
[1761890041801,1.81695777,3852.6,3852.1,0.1416]
[1761890042207,1.96585081,3852.8,3852.1,0.1416]
[1761890042394,1.81699946,3852.6,3852.1,0.1416]
[1761890043078,1.81693177,3852.7,3852.1,0.1416]
[1761890043433,0.14898218,3852.8,3852.2,0.02595919]
[1761890043730,0.1296,3852.8,3852.1,0.33748803]
[1761890043883,0.001,3853.1,3852.3,5.49047181]
[1761890044075,0.001,3853.1,3852.7,0.1296]
[1761890044417,0.001,3853.1,3852.8,0.02595514]
[1761890045521,0.001,3853.1,3852.8,0.22320364]
[1761890046326,0.001,3853.1,3852.8,0.1972485]
[1761890046525,0.001,3853.1,3853.0,0.1296]
[1761890049703,0.001,3853.1,3853.0,1.94636615]
[1761890050708,0.001,3853.1,3853.0,1.97231995]
[1761890051302,0.001,3853.1,3853.0,8.22809519]
[1761890051530,0.001,3853.1,3853.0,8.20214139]
[1761890051831,0.001,3853.1,3853.0,9.21699899]
[1761890054340,0.001,3853.1,3853.0,9.34659899]
[1761890058969,0.001,3853.1,3853.0,4.49050375]
[1761890059135,0.001,3853.1,3853.0,0.1296]
[1761890062666,0.001,3853.1,3853.0,1.94636615]
[1761890062863,0.001,3853.1,3853.0,1.97231995]
[1761890063064,0.001,3853.1,3853.0,1.94636615]
[1761890063235,0.001,3853.1,3853.0,1.97231995]
[1761890063438,0.001,3853.1,3853.0,4.48014113]
[1761890068332,0.001,3853.1,3853.0,8.32914113]
[1761890069251,0.001,3853.1,3853.0,4.48014113]
[1761890069468,0.001,3853.1,3853.0,8.35509493]
[1761890069673,0.001,3853.1,3853.0,8.32914113]
[1761890070532,0.001,3853.1,3853.0,13.18523637]
[1761890072977,0.001,3853.1,3853.0,13.18723637]
[1761890074387,0.001,3853.1,3853.0,9.33823637]
[1761890074782,0.001,3853.1,3853.0,13.18723637]
[1761890075897,0.001,3853.1,3853.0,13.59274037]
[1761890080696,0.001,3853.1,3853.0,13.18723637]
[1761890086997,0.001,3853.1,3853.0,13.59274037]
[1761890089135,0.001,3853.1,3853.0,8.73664513]
[1761890089315,0.001,3853.1,3853.0,13.59274037]
[1761890091799,0.001,3853.1,3853.0,18.31923561]
[1761890092128,0.001,3853.1,3853.0,18.44883561]
[1761890094232,0.001,3853.1,3853.0,13.59274037]
[1761890095257,0.001,3853.1,3853.0,18.44883561]
[1761890101453,0.001,3853.5,3853.4,2.22208156]
[1761890101656,0.001,3853.5,3853.4,7.68851888]
[1761890101874,0.001,3853.5,3853.4,9.06224778]
[1761890102156,0.001,3853.5,3853.4,9.67924778]
[1761890102962,0.4874,3855.1,3854.6,1.81601203]
[1761890103258,0.6851,3854.9,3854.6,4.61661633]
[1761890103461,0.6851,3854.9,3854.6,4.59067331]
[1761890103462,0.9736,3854.7,3854.6,4.59067331]
[1761890103657,0.9736,3854.7,3854.6,8.55918727]
[1761890104964,0.01,3854.7,3854.6,8.55918727]
[1761890106336,0.9736,3854.7,3854.6,3.70309203]
[1761890108766,0.01,3854.7,3854.6,3.70309203]
[1761890108953,0.9736,3854.7,3854.6,3.21569203]
[1761890110836,0.011,3854.7,3854.6,4.23042402]
[1761890113081,0.011,3854.7,3854.6,4.36002402]
[1761890117887,0.011,3854.7,3854.6,4.334081]
[1761890117888,0.9749,3854.7,3854.6,4.334081]
[1761890118064,0.9749,3854.7,3854.6,3.34529203]
[1761890122080,0.9749,3854.7,3854.6,1.97155505]
[1761890123682,0.4752,3854.7,3854.6,1.97155505]
[1761890123887,0.962,3854.7,3854.6,1.97155505]
[1761890128887,0.962,3854.7,3854.6,1.94561203]
[1761890129981,0.962,3854.7,3854.6,5.79461203]
[1761890134513,0.962,3854.7,3854.6,7.2891144]
[1761890136614,0.011,3854.7,3854.6,7.2891144]
[1761890136917,0.011,3854.7,3854.6,7.6946184]
[1761890139319,0.4663,3854.7,3854.6,7.6946184]
[1761890139528,0.9531,3854.7,3854.6,7.6946184]
[1761890141724,0.9531,3854.7,3854.6,3.8456184]
[1761890149456,0.4663,3854.7,3854.6,3.8456184]
[1761890150412,0.9661,3854.7,3854.6,3.8456184]
[1761890153442,0.9661,3854.7,3854.6,7.6946184]
[1761890160333,0.011,3854.7,3854.6,7.6946184]
[1761890160663,0.011,3854.7,3854.6,3.8456184]
[1761890160867,0.011,3854.7,3854.6,3.87156142]
[1761890161065,0.001,3855.1,3855.0,1.8158236]
[1761890161379,0.001,3855.1,3855.0,7.66436462]
[1761890161682,0.9828,3855.1,3855.0,7.76802429]
[1761890162507,0.9828,3855.1,3855.0,8.17352829]
[1761890162711,0.9828,3855.1,3855.0,8.95296062]
[1761890163492,0.001,3855.1,3855.0,8.95296062]
[1761890169033,0.001,3855.1,3855.0,10.35264062]
[1761890171328,0.001,3855.1,3855.0,9.74208116]
[1761890173930,0.001,3855.1,3855.0,13.59108116]
[1761890182537,0.001,3855.5,3855.3,0.405504]
[1761890182730,0.001,3855.5,3855.4,5.61646512]
[1761890182932,0.001,3855.5,3855.4,5.74606512]
[1761890183129,0.9535,3855.5,3855.4,5.94586512]
[1761890184502,0.9535,3855.5,3855.4,7.76150033]
[1761890188237,0.9535,3855.5,3855.4,2.91263055]
[1761890188574,0.9535,3855.5,3855.4,7.76150033]
[1761890189764,0.001,3855.5,3855.4,7.76150033]
[1761890191669,0.001,3855.5,3855.4,11.61050033]
[1761890191876,0.4601,3855.5,3855.4,11.61050033]
[1761890192240,0.9535,3855.5,3855.4,6.39953921]
[1761890198083,0.4601,3855.5,3855.4,6.39953921]
[1761890198755,0.4601,3855.5,3855.4,5.99403521]
[1761890198954,0.9535,3855.5,3855.4,5.99403521]
[1761890202605,0.001,3855.5,3855.4,7.13690499]
[1761890202749,0.001,3855.5,3855.4,5.87556963]
[1761890203187,0.001,3855.5,3855.4,5.60296963]
[1761890203353,0.01,3855.7,3855.4,5.60296963]
[1761890203354,1e-08,3855.7,3855.6,2.08814103]
[1761890203553,1e-08,3855.7,3855.6,6.96294711]
[1761890203781,1e-08,3855.7,3855.6,7.20961081]
[1761890203971,1e-08,3855.7,3855.6,9.40435611]
[1761890204866,1e-08,3855.7,3855.6,13.65886011]
[1761890205256,1e-08,3855.7,3855.6,15.05854011]
[1761890205653,1e-08,3855.7,3855.6,10.20967033]
[1761890205884,1e-08,3855.7,3855.6,19.90740989]
[1761890208570,1e-08,3855.7,3855.6,14.51334011]
[1761890208758,1e-08,3855.7,3855.6,14.78594011]
[1761890209686,1e-08,3855.7,3855.6,9.66447033]
[1761890209992,0.92770001,3855.7,3855.6,12.42249509]
[1761890210768,0.92770001,3855.7,3855.6,12.69509509]
[1761890210769,1e-08,3855.7,3855.6,12.69509509]
[1761890212185,1e-08,3855.7,3855.6,12.42249509]
[1761890213498,1e-08,3855.7,3855.6,12.55209509]
[1761890213890,0.45360001,3855.7,3855.6,12.55209509]
[1761890214095,0.92770001,3855.7,3855.6,7.29772131]
[1761890214406,0.92770001,3855.7,3855.6,2.04904131]
[1761890216185,0.92770001,3855.7,3855.6,2.05104131]
[1761890216382,0.92870001,3855.7,3855.6,2.05104131]
[1761890218486,0.92870001,3855.7,3855.6,0.23550028]
[1761890218727,0.92870001,3855.7,3855.6,1.94714103]
[1761890221120,0.00100001,3855.7,3855.6,1.94714103]
[1761890221304,0.00100001,3855.7,3855.6,3.1847826]
[1761890221486,0.00100001,3855.7,3855.6,3.6598826]
[1761890222607,0.00100001,3855.7,3855.6,4.0653866]
[1761890223191,0.00100001,3855.7,3855.6,10.31393638]
[1761890223391,0.00100001,3855.7,3855.6,5.7117303]
[1761890223830,0.00100001,3855.7,3855.6,9.2881303]
[1761890224122,0.00100001,3855.7,3855.6,9.0155303]
[1761890225638,0.00100001,3855.7,3855.6,14.40960008]
[1761890226058,0.00100001,3855.7,3855.6,14.13700008]
[1761890229037,0.00100001,3855.7,3855.6,13.86440008]
[1761890229215,0.00100001,3855.7,3855.6,14.13700008]
[1761890229416,0.00100001,3855.7,3855.6,14.40960008]
[1761890232531,0.00100001,3855.7,3855.6,14.13700008]
[1761890233237,0.00100001,3855.7,3855.6,13.86440008]
[1761890233461,0.00100001,3855.7,3855.6,14.47101381]
[1761890233667,0.00100001,3855.7,3855.6,15.01621381]
[1761890233868,0.00100001,3855.7,3855.6,14.74361381]
[1761890234566,0.45460001,3855.7,3855.6,4.7610263]
[1761890234767,0.92870001,3855.7,3855.6,3.82192103]
[1761890235534,0.00100001,3855.7,3855.6,4.12045733]
[1761890238458,0.95270001,3855.7,3855.6,1.84347733]
[1761890238852,0.95270001,3855.7,3855.6,1.81754103]
[1761890246866,0.95270001,3855.7,3855.6,1.94714103]
[1761890247702,0.49760001,3855.7,3855.6,1.97307733]
[1761890247867,0.00100001,3855.7,3855.6,2.89749425]
[1761890248992,0.46860001,3855.7,3855.6,1.97307733]
[1761890249195,0.94670001,3855.7,3855.6,1.94714103]
[1761890252474,0.94670001,3855.7,3855.6,1.97307733]
[1761890256453,0.94670001,3855.7,3855.6,1.94714103]
[1761890268699,0.94670001,3855.7,3855.6,0.1316]
[1761890269202,0.94670001,3855.7,3855.6,0.002]
[1761890270314,1.24340407,3855.7,3855.6,0.002]
[1761890270772,0.96608219,3855.7,3855.6,0.002]
[1761890272378,2.78157613,3855.7,3855.6,0.002]
[1761890273494,0.96608219,3855.7,3855.6,0.002]
[1761890274420,0.96230001,3855.7,3855.6,0.002]
[1761890274800,0.00100001,3855.7,3855.6,1.81754103]
[1761890275041,0.00100001,3855.7,3855.6,2.72899951]
[1761890275336,0.94870001,3855.7,3855.6,0.002]
[1761890296065,0.00100001,3855.7,3855.6,1.94714103]
[1761890296355,0.45500001,3855.7,3855.6,1.94714103]
[1761890296652,0.00100001,3855.7,3855.6,1.97307733]
[1761890296854,0.00100001,3855.7,3855.6,3.10966757]
[1761890297848,0.00100001,3855.7,3855.6,3.08373127]
[1761890298053,0.00100001,3855.7,3855.6,2.81113127]
[1761890298850,0.00100001,3855.7,3855.6,3.08373127]
[1761890299470,0.00100001,3855.7,3855.6,3.10966757]
[1761890303657,0.00100001,3855.7,3855.6,13.4562146]
[1761890303851,0.00100001,3855.7,3855.6,8.60501127]
[1761890304085,0.00100001,3855.7,3855.6,9.01051527]
[1761890304688,0.00100001,3855.7,3855.6,8.73791527]
[1761890305265,0.00100001,3855.7,3855.6,13.8617186]
[1761890308789,0.00100001,3855.7,3855.6,13.5891186]
[1761890310199,0.00100001,3855.7,3855.6,8.05981127]
[1761890310200,0.47720001,3855.7,3855.6,8.05981127]
[1761890310397,0.95150001,3855.7,3855.6,8.05981127]
[1761890310702,0.95150001,3855.7,3855.6,7.19582103]
[1761890311281,0.95150001,3855.7,3855.6,5.79614103]
[1761890312709,0.47720001,3855.7,3855.6,5.79614103]
[1761890313305,0.95150001,3855.7,3855.6,5.79614103]
[1761890314624,0.95150001,3855.7,3855.6,1.94714103]
[1761890316214,0.95150001,3855.7,3855.6,0.1316]
[1761890317826,0.95150001,3855.7,3855.6,1.94714103]
[1761890318332,0.47720001,3855.7,3855.6,1.94714103]
[1761890318494,0.00100001,3855.7,3855.6,2.21974103]
[1761890319724,0.00100001,3855.7,3855.6,3.68646277]
[1761890319900,0.00100001,3855.7,3855.6,3.95906277]
[1761890320434,0.00100001,3855.7,3855.6,7.53546277]
[1761890320732,0.00100001,3855.7,3855.6,7.50952647]
[1761890321039,0.00100001,3855.7,3855.6,3.66052647]
[1761890321335,0.00100001,3855.7,3855.6,3.95906277]
[1761890322324,0.00100001,3855.7,3855.6,3.68646277]
[1761890322505,0.00100001,3855.7,3855.6,10.3169138]
[1761890322834,0.00100001,3855.7,3855.6,5.46571047]
[1761890323050,0.00100001,3855.7,3855.6,5.19311047]
[1761890323564,0.00100001,3855.7,3855.6,4.78760647]
[1761890324737,0.47720001,3855.7,3855.6,3.34682103]
[1761890325133,0.00100001,3855.7,3855.6,3.34682103]
[1761890325832,0.47720001,3855.7,3855.6,3.34682103]
[1761890326034,0.95150001,3855.7,3855.6,3.34682103]
[1761890326349,0.47720001,3855.7,3855.6,3.34682103]
[1761890326950,0.47720001,3855.7,3855.6,1.94714103]
[1761890327248,0.95150001,3855.7,3855.6,1.94714103]
[1761890330765,0.00100001,3855.7,3855.6,1.94714103]
[1761890336263,0.47560001,3855.7,3855.6,1.94714103]
[1761890336470,0.94360001,3855.7,3855.6,1.94714103]
[1761890336767,0.94360001,3855.7,3855.6,0.1316]
[1761890337165,0.94360001,3855.7,3855.6,0.002]
[1761890340571,0.96298219,3855.7,3855.6,0.002]
[1761890341073,1.74484137,3855.7,3855.6,0.002]
[1761890342881,0.96298219,3855.7,3855.6,0.002]
[1761890349396,1.81561319,3855.5,3855.2,0.002]
[1761890349561,8.54116563,3855.3,3855.2,0.002]
[1761890349923,1.87428,3855.3,3855.2,0.002]
[1761890350130,5.07826081,3855.3,3855.2,0.002]
[1761890352029,3.26257851,3855.3,3855.2,0.002]
[1761890352214,2.36166218,3855.3,3855.2,0.002]
[1761890353230,4.17734448,3855.3,3855.2,0.002]
[1761890355740,0.96198218,3855.3,3855.2,0.002]
[1761890355939,0.9426,3855.3,3855.2,0.002]
[1761890356541,0.96198218,3855.3,3855.2,0.002]
[1761890356737,1.23974043,3855.3,3855.2,0.002]
[1761890357250,3.05542273,3855.3,3855.2,0.002]
[1761890363131,1.23974043,3855.3,3855.2,0.002]
[1761890363366,0.49398218,3855.3,3855.2,0.002]
[1761890363526,0.00100001,3855.7,3855.2,0.002]
[1761890363527,0.1296,3855.5,3855.2,0.002]
[1761890363727,0.01938218,3855.5,3855.2,0.1403]
[1761890364029,0.01938218,3855.5,3855.2,0.2699]
[1761890364431,0.01938218,3855.5,3855.2,2.08559774]
[1761890364957,0.01938218,3855.4,3855.2,2.08559774]
[1761890365145,0.50288219,3855.7,3855.2,2.08559774]
[1761890365478,0.50288219,3855.7,3855.2,0.2699]
[1761890365967,0.48,3855.3,3855.2,0.002]
[1761890366368,0.9625,3855.3,3855.2,0.002]
[1761890367163,0.01938218,3855.5,3855.2,0.002]
[1761890367466,0.48,3855.3,3855.2,0.002]
[1761890367631,0.49938218,3855.3,3855.2,0.002]
[1761890367827,0.01938218,3855.3,3855.2,0.2766]